bitfinex-derivatives/quotes_BTCF0:USTF0_20250823
["timestamp","ask_amount","ask_price","bid_price","bid_amount"]
[1755967349890,4.04657616,114880.0,114870.0,0.44474725]
[1755967354995,3.06463808,114880.0,114870.0,0.44474725]
[1755967355195,4.04657616,114880.0,114870.0,0.44474725]
[1755967358009,3.25165616,114880.0,114870.0,0.44474725]
[1755967358210,4.04641616,114880.0,114870.0,0.44474725]
[1755967362909,4.04641616,114880.0,114870.0,0.39696725]
[1755967363710,4.04641616,114880.0,114870.0,0.38172725]
[1755967364011,4.04641616,114880.0,114870.0,0.35982725]
[1755967368702,4.04641616,114880.0,114870.0,0.32809725]
[1755967374917,4.04641616,114880.0,114870.0,0.35259725]
[1755967375818,4.04641616,114880.0,114870.0,0.32809725]
[1755967377410,4.29641616,114880.0,114870.0,0.01809725]
[1755967377615,4.29641616,114880.0,114870.0,0.29809725]
[1755967378924,4.04641616,114880.0,114870.0,0.29809725]
[1755967383419,4.04641616,114880.0,114870.0,0.32138725]
[1755967388123,4.04633428,114880.0,114870.0,0.32138725]
[1755967388320,3.0643962,114880.0,114870.0,0.32138725]
[1755967388527,4.04633428,114880.0,114870.0,0.32138725]
[1755967393237,4.04633428,114880.0,114870.0,0.29809725]
[1755967395938,4.04633428,114880.0,114870.0,0.01809725]
[1755967396133,4.04633428,114880.0,114870.0,0.32809725]
[1755967396535,4.04633428,114880.0,114870.0,0.30488817]
[1755967396736,0.2053423,114860.0,114850.0,0.08371214]
[1755967396934,1.8713518,114860.0,114850.0,0.41371214]
[1755967397939,1.8713518,114860.0,114850.0,0.41571214]
[1755967398450,1.8713518,114860.0,114850.0,0.41871214]
[1755967398743,1.8713518,114860.0,114850.0,0.44200214]
[1755967400445,2.2321518,114860.0,114850.0,0.44200214]
[1755967402337,2.21239134,114860.0,114850.0,0.44200214]
[1755967402944,2.21239134,114860.0,114850.0,0.50463873]
[1755967403445,2.21239134,114860.0,114850.0,0.44200214]
[1755967404046,2.21239134,114860.0,114850.0,0.50463873]
[1755967407654,2.21239134,114860.0,114850.0,0.47131873]
[1755967407859,2.21239134,114860.0,114850.0,0.50289873]
[1755967409670,2.21239134,114860.0,114850.0,0.44026214]
[1755967412067,1.7214223,114860.0,114850.0,0.44026214]
[1755967412256,2.21239134,114860.0,114850.0,0.44026214]
[1755967413353,1.7214223,114860.0,114850.0,0.44026214]
[1755967413555,2.21239134,114860.0,114850.0,0.44026214]
[1755967425477,2.21539134,114860.0,114850.0,0.43726214]
[1755967425673,2.21639134,114860.0,114850.0,0.43526214]
[1755967426572,2.21639134,114860.0,114850.0,0.49789873]
[1755967427169,2.21639134,114860.0,114850.0,0.49380659]
[1755967428077,2.21639134,114860.0,114850.0,0.47051659]
[1755967428471,2.21639134,114860.0,114850.0,0.42380659]
[1755967429578,2.21639134,114860.0,114850.0,0.36117]
[1755967430773,2.23628676,114860.0,114850.0,0.36117]
[1755967432682,2.23628676,114860.0,114850.0,0.39275]
[1755967434184,1.74531772,114860.0,114850.0,0.39275]
[1755967434379,2.23628676,114860.0,114850.0,0.41745]
[1755967435176,2.23628676,114860.0,114850.0,0.43119]
[1755967435985,2.23628676,114860.0,114850.0,0.41745]
[1755967436184,2.23628676,114860.0,114850.0,0.36117]
[1755967440587,2.23628676,114860.0,114850.0,0.33959]
[1755967442187,2.21639134,114860.0,114850.0,0.33959]
[1755967442393,2.21639134,114860.0,114850.0,0.40222659]
[1755967443188,2.21639134,114860.0,114850.0,0.33959]
[1755967445396,2.21639134,114860.0,114850.0,0.36172]
[1755967446094,2.21639134,114860.0,114850.0,0.45729659]
[1755967446496,2.21639134,114860.0,114850.0,0.48159659]
[1755967447096,2.21639134,114860.0,114850.0,0.41896]
[1755967447296,1.7254223,114860.0,114850.0,0.41896]
[1755967447495,2.21639134,114860.0,114850.0,0.41896]
[1755967448594,1.7254223,114860.0,114850.0,0.41896]
[1755967448800,2.21639134,114860.0,114850.0,0.44959]
[1755967449900,2.23629073,114860.0,114850.0,0.44959]
[1755967450406,2.21639134,114860.0,114850.0,0.44959]
[1755967451193,2.21639134,114860.0,114850.0,0.41111]
[1755967451500,2.23629079,114860.0,114850.0,0.41111]
[1755967451701,2.21639134,114860.0,114850.0,0.41111]
[1755967451889,2.21639134,114860.0,114850.0,0.43541]
[1755967452404,2.23629109,114860.0,114850.0,0.43541]
[1755967453809,2.23629109,114860.0,114850.0,0.36172]
[1755967454309,2.23629109,114860.0,114850.0,0.39466]
[1755967454509,2.23629109,114860.0,114850.0,0.41896]
[1755967455009,2.23629109,114860.0,114850.0,0.39466]
[1755967455210,2.23629109,114860.0,114850.0,0.36172]
[1755967455611,2.23629109,114860.0,114850.0,0.39466]
[1755967456103,2.23629109,114860.0,114850.0,0.41896]
[1755967458603,2.23629109,114860.0,114850.0,0.41665]
[1755967458803,2.23629109,114860.0,114850.0,0.44959]
[1755967460011,2.21639134,114860.0,114850.0,0.51222659]
[1755967461613,2.23637798,114860.0,114850.0,0.44959]
[1755967468218,2.23637798,114860.0,114850.0,0.43541]
[1755967469017,2.23637798,114860.0,114850.0,0.44935]
[1755967469921,2.23637798,114860.0,114850.0,0.44897]
[1755967471013,1.74540894,114860.0,114850.0,0.44897]
[1755967471412,2.23637798,114860.0,114850.0,0.44897]
[1755967471818,2.23337798,114860.0,114850.0,0.44897]
[1755967472119,2.23437798,114860.0,114850.0,0.44897]
[1755967473011,2.23401798,114860.0,114850.0,0.44897]
[1755967474219,1.74304894,114860.0,114850.0,0.44897]
[1755967474522,1.22868,114860.0,114850.0,1.33967553]
[1755967474716,0.82208,114860.0,114850.0,1.33967553]
[1755967474914,0.79612,114860.0,114850.0,1.27703894]
[1755967475614,0.79612,114860.0,114850.0,1.63783894]
[1755967475922,0.79412,114860.0,114850.0,1.63783894]
[1755967476122,0.79412,114860.0,114850.0,1.63983894]
[1755967476522,0.75912,114860.0,114850.0,1.63983894]
[1755967476723,0.75912,114860.0,114850.0,1.71816573]
[1755967477414,0.75912,114860.0,114850.0,1.71916573]
[1755967477726,0.8462122,114860.0,114850.0,1.64083894]
[1755967478814,0.8811722,114860.0,114850.0,1.64083894]
[1755967479213,0.8811722,114860.0,114850.0,1.21244339]
[1755967479413,0.8811722,114860.0,114850.0,1.70341243]
[1755967479621,0.8811722,114860.0,114850.0,1.21244339]
[1755967479823,0.8811722,114860.0,114850.0,1.70341243]
[1755967485534,0.8811722,114860.0,114850.0,1.71916573]
[1755967487532,0.8911022,114860.0,114850.0,1.71916573]
[1755967488533,0.9122822,114860.0,114850.0,1.71916573]
[1755967489028,0.9682322,114860.0,114850.0,1.71916573]
[1755967489726,0.9840322,114860.0,114850.0,1.71916573]
[1755967489932,0.9976822,114860.0,114850.0,1.46916573]
[1755967491538,0.9976822,114860.0,114850.0,0.97819669]
[1755967491726,0.9976822,114860.0,114850.0,1.46916573]
[1755967498241,0.9976822,114860.0,114850.0,0.97819669]
[1755967498440,0.9976822,114860.0,114850.0,1.46916573]
[1755967503241,0.9976822,114860.0,114850.0,1.39083894]
[1755967504336,0.9976822,114860.0,114850.0,1.5004852]
[1755967505239,0.20609,114870.0,114860.0,0.1353724]
[1755967505434,0.14872,114870.0,114860.0,1.43248935]
[1755967505636,0.88081,114870.0,114860.0,1.43248935]
[1755967506044,0.88081,114870.0,114860.0,1.35408708]
[1755967506343,0.89037,114870.0,114860.0,1.35408708]
[1755967506543,0.17992845,114880.0,114870.0,0.2048747]
[1755967506745,0.95945845,114880.0,114870.0,1.45505945]
[1755967506935,0.93687845,114880.0,114870.0,1.45505945]
[1755967507646,0.99424845,114880.0,114870.0,1.45505945]
[1755967508247,0.99424845,114880.0,114870.0,0.96409041]
[1755967508543,1.00843845,114880.0,114870.0,1.37664374]
[1755967508944,1.00943845,114880.0,114870.0,1.37664374]
[1755967509145,1.01043845,114880.0,114870.0,1.37664374]
[1755967509333,0.21671845,114880.0,114870.0,1.37664374]
[1755967509545,1.01039845,114880.0,114870.0,1.37664374]
[1755967509737,1.00839845,114880.0,114870.0,1.37764374]
[1755967510034,1.00839845,114880.0,114870.0,1.37964374]
[1755967510441,1.00839845,114880.0,114870.0,1.44229421]
[1755967510949,1.00839845,114880.0,114870.0,1.37964374]
[1755967511440,1.00839845,114880.0,114870.0,1.44229303]
[1755967515345,0.88652715,114880.0,114870.0,1.44229303]
[1755967515650,0.87233715,114880.0,114870.0,1.45805945]
[1755967515851,0.95941425,114880.0,114870.0,1.45805945]
[1755967516051,0.99420425,114880.0,114870.0,1.45805945]
[1755967516251,1.00839425,114880.0,114870.0,1.45805945]
[1755967517645,0.03127,114880.0,114870.0,1.45805945]
[1755967517852,0.82487,114880.0,114870.0,1.44225909]
[1755967518547,0.9119471,114880.0,114870.0,1.44225909]
[1755967518746,0.9996771,114880.0,114870.0,1.44225909]
[1755967519246,0.9996771,114880.0,114870.0,1.37964374]
[1755967522354,0.9996771,114880.0,114870.0,1.44225439]
[1755967523254,0.9126,114880.0,114870.0,1.44225439]
[1755967523451,0.9126,114880.0,114870.0,1.37964374]
[1755967525252,0.9126,114880.0,114870.0,1.45805945]
[1755967527058,0.87781,114880.0,114870.0,1.45805945]
[1755967527253,0.01961356,114890.0,114870.0,3.09385278]
[1755967527453,0.81313356,114890.0,114880.0,1.46052808]
[1755967527647,0.2062525,114900.0,114890.0,0.1337196]
[1755967527852,0.91271,114900.0,114890.0,0.8765596]
[1755967528058,0.91271,114900.0,114890.0,1.36752864]
[1755967529362,0.91371,114900.0,114890.0,1.36752864]
[1755967529561,0.91471,114900.0,114890.0,1.36752864]
[1755967529762,0.91471,114900.0,114890.0,1.43008704]
[1755967530256,0.0864,114900.0,114890.0,1.43008704]
[1755967530558,0.89903,114900.0,114890.0,1.43008704]
[1755967531064,0.91338,114900.0,114890.0,1.43008704]
[1755967532075,0.91338,114900.0,114890.0,1.43862125]
[1755967532363,0.91338,114900.0,114890.0,1.37606285]
[1755967534760,0.91338,114900.0,114890.0,1.36752864]
[1755967535374,0.91338,114900.0,114890.0,1.44594435]
[1755967535570,0.84307,114900.0,114890.0,1.37610703]
[1755967535774,0.002,114900.0,114890.0,2.24792274]
[1755967536274,0.002,114900.0,114890.0,2.74792274]
[1755967543481,0.002,114900.0,114890.0,2.66950703]
[1755967543982,0.002,114900.0,114890.0,2.74792274]
[1755967545279,0.002,114900.0,114890.0,3.10872274]
[1755967546076,0.002,114900.0,114890.0,3.09277354]
[1755967546584,0.01175,114900.0,114890.0,3.09277354]
[1755967546786,0.03475,114900.0,114890.0,3.08419515]
[1755967547181,0.03475,114900.0,114890.0,2.29079515]
[1755967547384,0.12051,114900.0,114890.0,2.29079515]
[1755967548178,0.08713,114900.0,114890.0,2.29079515]
[1755967548382,0.12051,114900.0,114890.0,2.29079515]
[1755967549184,0.2075718,114900.0,114890.0,2.29079515]
[1755967550284,0.12051,114900.0,114890.0,2.29079515]
[1755967550478,0.002,114900.0,114890.0,1.79079515]
[1755967551286,0.002,114900.0,114890.0,2.29079515]
[1755967553485,0.002,114900.0,114890.0,2.22832864]
[1755967553684,0.002,114900.0,114890.0,2.30674435]
[1755967554484,0.002,114900.0,114890.0,2.22832864]
[1755967559692,0.002,114900.0,114890.0,2.3379749]
[1755967561890,0.002,114900.0,114890.0,2.42832864]
[1755967562290,0.00011194,114900.0,114890.0,2.42832864]
[1755967564194,0.03976,114920.0,114910.0,0.67268344]
[1755967564385,0.03976,114920.0,114910.0,1.44966212]
[1755967564589,0.04905,114920.0,114910.0,1.46373212]
[1755967565191,0.08094,114920.0,114910.0,1.46373212]
[1755967565387,0.10563,114920.0,114910.0,1.46373212]
[1755967565592,0.10863,114920.0,114910.0,1.46373212]
[1755967566596,0.10563,114920.0,114910.0,1.46373212]
[1755967566996,0.10763,114920.0,114910.0,1.46373212]
[1755967567195,0.10763,114920.0,114910.0,1.38543057]
[1755967567495,0.10763,114920.0,114910.0,1.46370824]
[1755967567794,0.10563,114920.0,114910.0,1.46370824]
[1755967567985,0.00929,114920.0,114910.0,1.46370824]
[1755967569584,0.00929,114920.0,114910.0,1.47264797]
[1755967569796,0.00929,114920.0,114910.0,1.83344797]
[1755967569992,0.00929,114920.0,114910.0,1.7551703]
[1755967571692,2.61572044,114930.0,114920.0,0.2049968]
[1755967571896,2.61572044,114930.0,114920.0,1.42499375]
[1755967572392,2.61572044,114930.0,114920.0,1.34676584]
[1755967572896,2.61872044,114930.0,114920.0,1.34676584]
[1755967573798,2.61864044,114930.0,114920.0,1.34676584]
[1755967574098,1.01309044,114930.0,114920.0,1.34676584]
[1755967574298,1.01309044,114930.0,114920.0,1.40932772]
[1755967579206,1.01309044,114930.0,114920.0,1.34676584]
[1755967580108,1.01309044,114930.0,114920.0,0.93402471]
[1755967580311,1.01309044,114930.0,114920.0,1.42499375]
[1755967582410,1.01309044,114930.0,114920.0,1.34676584]
[1755967584013,1.50405948,114930.0,114920.0,0.73622]
[1755967584213,1.86485948,114930.0,114920.0,0.37743642]
[1755967584415,1.86485948,114930.0,114920.0,0.36821642]
[1755967590517,2.11485948,114930.0,114920.0,0.29]
[1755967590717,2.11485948,114930.0,114920.0,0.35262291]
[1755967590718,2.11637426,114930.0,114920.0,0.35262291]
[1755967597733,1.86637426,114930.0,114920.0,0.35262291]
[1755967599833,1.37540522,114930.0,114920.0,0.35262291]
[1755967600034,1.86637426,114930.0,114920.0,0.35262291]
[1755967603122,1.37540522,114930.0,114920.0,0.35262291]
[1755967603336,1.86637426,114930.0,114920.0,0.35262291]
[1755967604236,1.86637426,114930.0,114920.0,0.36233291]
[1755967606526,1.86637426,114930.0,114920.0,0.35262291]
[1755967607934,1.86637426,114930.0,114920.0,0.29]
[1755967614437,1.50557426,114930.0,114920.0,0.29]
[1755967614639,2.22717426,114930.0,114920.0,0.29]
[1755967617238,2.22717426,114930.0,114920.0,0.35262291]
[1755967617942,2.22717426,114930.0,114920.0,0.29]
[1755967619444,2.22717426,114930.0,114920.0,0.35262291]
[1755967620446,2.47717426,114930.0,114920.0,0.29]
[1755967620837,2.49690382,114930.0,114920.0,0.29]
[1755967622240,2.47717426,114930.0,114920.0,0.29]
[1755967622447,2.49690273,114930.0,114920.0,0.29]
[1755967622647,2.00593369,114930.0,114920.0,0.29]
[1755967622848,2.49690273,114930.0,114920.0,0.29]
[1755967640050,2.49690273,114930.0,114910.0,0.01787713]
[1755967640051,0.2037069,114920.0,114910.0,0.01787713]
[1755967640252,1.78069818,114920.0,114910.0,0.34787713]
[1755967642144,1.78169818,114920.0,114910.0,0.34787713]
[1755967642347,1.76196971,114920.0,114910.0,0.34787713]
[1755967643057,1.78174158,114920.0,114910.0,0.34787713]
[1755967644960,1.78173831,114920.0,114910.0,0.35774713]
[1755967645464,1.78173831,114920.0,114910.0,0.40280713]
[1755967645959,1.78173831,114920.0,114910.0,0.43518713]
[1755967646563,1.78173831,114920.0,114910.0,0.45112713]
[1755967646764,1.78173831,114920.0,114910.0,0.46593713]
[1755967651961,1.92623831,114920.0,114910.0,0.44806]
[1755967652169,1.78173831,114920.0,114910.0,0.44806]
[1755967656964,1.78173831,114920.0,114910.0,0.36102]
[1755967657466,1.78173831,114920.0,114910.0,0.41684]
[1755967657868,1.78173831,114920.0,114910.0,0.43145]
[1755967658565,1.78173831,114920.0,114910.0,0.41684]
[1755967658868,1.78173831,114920.0,114910.0,0.33987]
[1755967660370,1.78173831,114920.0,114910.0,0.36136]
[1755967660572,3.43705831,114920.0,114910.0,0.36136]
[1755967661268,3.43705831,114920.0,114910.0,0.41718]
[1755967661669,3.43705831,114920.0,114910.0,0.43179]
[1755967662471,3.43705831,114920.0,114910.0,0.44796]
[1755967662972,3.43705831,114920.0,114910.0,0.43335]
[1755967665671,3.43705831,114920.0,114910.0,0.44796]
[1755967666679,3.43705831,114920.0,114910.0,0.43335]
[1755967666880,3.43705831,114920.0,114910.0,0.40055]
[1755967667475,3.43705831,114920.0,114910.0,0.43335]
[1755967668871,3.07625831,114920.0,114910.0,0.43335]
[1755967669180,3.79785831,114920.0,114910.0,0.43335]
[1755967670282,3.79785831,114920.0,114910.0,0.37753]
[1755967672084,3.79785831,114920.0,114910.0,0.44796]
[1755967673989,3.30688927,114920.0,114910.0,0.44796]
[1755967675091,4.09968927,114920.0,114910.0,0.44796]
[1755967676600,4.59065831,114920.0,114910.0,0.44796]
[1755967682897,4.73515831,114920.0,114910.0,0.44796]
[1755967683202,4.59065831,114920.0,114910.0,0.44796]
[1755967684796,4.09968927,114920.0,114910.0,0.45001]
[1755967688205,4.09968927,114920.0,114910.0,0.4354]
[1755967688899,4.09968927,114920.0,114910.0,0.44919]
[1755967690403,4.09968927,114920.0,114910.0,0.4824343]
[1755967691002,4.59065831,114920.0,114910.0,0.4475843]
[1755967691207,4.59065831,114920.0,114910.0,0.4824343]
[1755967691707,4.59065831,114920.0,114910.0,0.4475843]
[1755967691901,4.59065831,114920.0,114910.0,0.3770343]
[1755967693108,4.59065831,114920.0,114910.0,0.3861743]
[1755967696512,4.09968927,114920.0,114910.0,0.4656643]
[1755967697711,4.09968927,114920.0,114910.0,0.4308143]
[1755967698104,4.09968927,114920.0,114910.0,0.4656643]
[1755967700211,4.09968927,114920.0,114910.0,0.41863]
[1755967700410,4.09968927,114920.0,114910.0,0.47744967]
[1755967700411,3.90482457,114920.0,114910.0,0.47744967]
[1755967700717,3.07640907,114920.0,114910.0,1.04328684]
[1755967701207,1.68188,114920.0,114910.0,1.35590975]
[1755967701409,1.65632,114920.0,114910.0,1.71670975]
[1755967701809,2.44904,114920.0,114910.0,1.65408684]
[1755967702011,0.79372,114920.0,114910.0,1.73230326]
[1755967702814,0.79272,114920.0,114910.0,1.73430326]
[1755967703007,0.09729482,114930.0,114920.0,0.0870469]
[1755967703312,0.89001482,114930.0,114920.0,1.33662594]
[1755967703611,0.88850004,114930.0,114920.0,1.33662594]
[1755967704812,0.89802004,114930.0,114920.0,1.33662594]
[1755967705013,0.92066004,114930.0,114920.0,1.33662594]
[1755967705512,0.92058004,114930.0,114920.0,1.33662594]
[1755967705714,0.92058004,114930.0,114920.0,1.33762594]
[1755967707317,0.95544004,114930.0,114920.0,1.40006039]
[1755967708403,0.99368004,114930.0,114920.0,1.40006039]
[1755967708603,1.00738004,114930.0,114920.0,1.40006039]
[1755967710708,1.00738004,114930.0,114920.0,0.90909135]
[1755967710908,1.00738004,114930.0,114920.0,1.40006039]
[1755967712512,1.00738004,114930.0,114920.0,1.33762594]
[1755967712910,1.00738004,114930.0,114920.0,1.40006039]
[1755967713515,1.00738004,114930.0,114920.0,1.33762594]
[1755967721420,1.00738004,114930.0,114920.0,0.8466569]
[1755967721621,1.00738004,114930.0,114920.0,1.33762594]
[1755967722428,1.00738004,114930.0,114920.0,1.40006039]
[1755967722617,1.00738004,114930.0,114920.0,1.33762594]
[1755967722926,1.00738004,114930.0,114920.0,1.40002968]
[1755967723122,1.00738004,114930.0,114920.0,1.33762594]
[1755967723828,0.21474004,114930.0,114920.0,1.33762594]
[1755967724028,1.00710004,114930.0,114920.0,1.33762594]
[1755967724827,1.00710004,114930.0,114920.0,1.40005268]
[1755967725229,1.00710004,114930.0,114920.0,1.33762594]
[1755967725929,1.00710004,114930.0,114920.0,1.40006756]
[1755967729334,1.00710004,114930.0,114920.0,1.33762594]
[1755967731834,0.21474004,114930.0,114920.0,1.33762594]
[1755967732035,1.00702004,114930.0,114920.0,1.33762594]
[1755967732236,1.00702004,114930.0,114920.0,1.41579]
[1755967734140,1.00702004,114930.0,114920.0,0.92482096]
[1755967734340,1.00702004,114930.0,114920.0,1.41579]
[1755967735943,1.00702004,114930.0,114920.0,1.33762594]
[1755967736141,1.00702004,114930.0,114920.0,1.44724812]
[1755967738144,1.00702004,114930.0,114920.0,1.33762594]
[1755967740242,0.91124,114930.0,114920.0,1.33762594]
[1755967740642,0.91985894,114930.0,114920.0,1.33762594]
[1755967740947,0.9982792,114930.0,114920.0,1.33762594]
[1755967741146,0.9982792,114930.0,114920.0,1.41596062]
[1755967743360,0.9982792,114930.0,114920.0,0.92499158]
[1755967743765,0.9982792,114930.0,114920.0,1.41596062]
[1755967744666,1.0071266,114930.0,114920.0,1.41596062]
[1755967747761,1.0071266,114930.0,114920.0,0.92499158]
[1755967747968,1.0071266,114930.0,114920.0,1.41596062]
[1755967749964,1.0071266,114930.0,114920.0,1.33762594]
[1755967754673,1.0071266,114930.0,114920.0,1.40027169]
[1755967756968,1.0071266,114930.0,114920.0,1.39927169]
[1755967758276,1.0081266,114930.0,114920.0,0.90830265]
[1755967758570,1.0081266,114930.0,114920.0,1.39927169]
[1755967762577,1.0081266,114930.0,114920.0,1.33662594]
[1755967765174,1.0081266,114930.0,114920.0,1.44624812]
[1755967767382,1.0081266,114930.0,114920.0,1.52453197]
[1755967767581,1.0081266,114930.0,114920.0,1.41490979]
[1755967769778,1.0081266,114930.0,114920.0,1.41590979]
[1755967770982,1.0071266,114930.0,114920.0,1.41590979]
[1755967771789,1.0071266,114930.0,114920.0,1.41490979]
[1755967772782,1.0071266,114930.0,114920.0,1.41590979]
[1755967773384,1.0071266,114930.0,114920.0,0.92494075]
[1755967773586,1.0071266,114930.0,114920.0,1.41590979]
[1755967777291,1.0071266,114930.0,114920.0,0.92494075]
[1755967777478,1.0071266,114930.0,114920.0,1.33762594]
[1755967777681,1.0071266,114930.0,114920.0,1.44724812]
[1755967780592,1.0071266,114930.0,114920.0,1.08644812]
[1755967782692,1.0071266,114930.0,114920.0,1.08544812]
[1755967782893,1.0071266,114930.0,114920.0,0.59547908]
[1755967783191,1.0071266,114930.0,114920.0,1.08644812]
[1755967784089,1.0081266,114930.0,114920.0,1.08644812]
[1755967784493,1.0081266,114930.0,114920.0,0.97582594]
[1755967785898,1.0081266,114930.0,114920.0,1.05410277]
[1755967787398,1.0081266,114930.0,114920.0,0.56313373]
[1755967787697,1.0081266,114930.0,114920.0,1.05410277]
[1755967792602,1.0081266,114930.0,114920.0,0.97582594]
[1755967795803,1.0081266,114930.0,114920.0,1.08544812]
[1755967796699,1.0081266,114930.0,114920.0,0.59447908]
[1755967796897,1.0081266,114930.0,114920.0,1.08544812]
[1755967800500,1.74909564,114930.0,114920.0,0.45879218]
[1755967800806,1.62044137,114930.0,114920.0,0.28]
[1755967800996,2.11141041,114930.0,114920.0,0.35826272]
[1755967802813,2.11141041,114930.0,114920.0,0.34259036]
[1755967803108,1.62044137,114930.0,114920.0,0.34259036]
[1755967803297,2.11141041,114930.0,114920.0,0.34259036]
[1755967804300,2.11141041,114930.0,114920.0,0.28]
[1755967805305,1.62044137,114930.0,114920.0,0.28]
[1755967805607,2.11141041,114930.0,114920.0,0.28]
[1755967807498,2.11141041,114930.0,114920.0,0.32691718]
[1755967807913,3.76633041,114930.0,114920.0,0.32691718]
[1755967808807,3.78527016,114930.0,114920.0,0.32691718]
[1755967810503,3.76633041,114930.0,114920.0,0.32691718]
[1755967811307,3.76633041,114930.0,114920.0,0.28]
[1755967812105,3.27536137,114930.0,114920.0,0.28]
[1755967812310,3.76633041,114930.0,114920.0,0.28]
[1755967812608,3.76633041,114930.0,114920.0,0.32691718]
[1755967815413,3.27536137,114930.0,114920.0,0.32691718]
[1755967815614,3.76633041,114930.0,114920.0,0.32691718]
[1755967818618,3.76633041,114930.0,114920.0,0.28]
[1755967822220,3.91083041,114930.0,114920.0,0.28]
[1755967822819,3.93049571,114930.0,114920.0,0.28]
[1755967823227,2.25274667,114930.0,114920.0,1.10531904]
[1755967823416,2.21788667,114930.0,114920.0,1.18413622]
[1755967823619,2.99610667,114930.0,114920.0,1.18413622]
[1755967823919,2.99610667,114930.0,114920.0,1.13721904]
[1755967824218,2.99610667,114930.0,114920.0,1.22426554]
[1755967824219,1.69546747,114930.0,114920.0,1.22426554]
[1755967824524,2.47786747,114930.0,114920.0,1.22426554]
[1755967824821,2.47786747,114930.0,114920.0,1.2868559]
[1755967825218,2.56490647,114930.0,114920.0,1.2868559]
[1755967826021,2.47786747,114930.0,114920.0,1.2868559]
[1755967826625,2.56490637,114930.0,114920.0,1.2868559]
[1755967826817,2.56490637,114930.0,114920.0,1.22426554]
[1755967827817,2.56490637,114930.0,114920.0,1.28674814]
[1755967828438,2.4675053,114930.0,114920.0,1.71523458]
[1755967828731,2.44784,114930.0,114920.0,1.71523458]
[1755967829030,2.44784,114930.0,114920.0,1.7934973]
[1755967829213,2.44784,114930.0,114920.0,2.1542973]
[1755967829823,2.44784,114930.0,114920.0,2.1552973]
[1755967830023,2.44784,114930.0,114920.0,1.9052973]
[1755967830226,0.79292,114930.0,114920.0,1.9052973]
[1755967830829,0.79192,114930.0,114920.0,1.9052973]
[1755967833227,0.79192,114930.0,114920.0,0.92335922]
[1755967833527,0.878959,114930.0,114920.0,1.41432826]
[1755967833930,0.909969,114930.0,114920.0,1.41432826]
[1755967834425,0.983409,114930.0,114920.0,1.41432826]
[1755967834625,0.997209,114930.0,114920.0,1.41432826]
[1755967838426,0.997209,114930.0,114920.0,1.33606554]
[1755967840035,0.997209,114930.0,114920.0,1.33506554]
[1755967840329,0.997209,114930.0,114920.0,1.33606554]
[1755967841631,0.998209,114930.0,114920.0,1.33606554]
[1755967842135,0.998209,114930.0,114920.0,1.33506554]
[1755967842537,0.998209,114930.0,114920.0,1.41332826]
[1755967847638,0.997209,114930.0,114920.0,1.41332826]
[1755967848143,0.997209,114930.0,114920.0,1.41432826]
[1755967848533,0.997209,114930.0,114920.0,1.33606554]
[1755967852442,0.997209,114930.0,114920.0,1.44568772]
[1755967852641,0.997209,114930.0,114920.0,1.52379927]
[1755967852848,0.997209,114930.0,114920.0,1.41417709]
[1755967853453,0.997209,114930.0,114920.0,1.33606554]
[1755967855647,0.997209,114930.0,114920.0,1.44568772]
[1755967862147,0.997209,114930.0,114920.0,1.33606554]
[1755967862950,0.997209,114930.0,114920.0,1.44568772]
[1755967863141,0.888419,114930.0,114920.0,1.44568772]
[1755967863343,0.878959,114930.0,114920.0,1.93665676]
[1755967864150,0.878959,114930.0,114920.0,1.44568772]
[1755967867149,0.888809,114930.0,114920.0,1.93665676]
[1755967867352,0.878959,114930.0,114920.0,1.44568772]
[1755967867947,0.900239,114930.0,114920.0,0.95471868]
[1755967868253,0.944149,114930.0,114920.0,1.94686247]
[1755967869149,0.910089,114930.0,114920.0,1.94686247]
[1755967869345,0.79192,114930.0,114920.0,1.94686247]
[1755967869555,0.11245697,114940.0,114930.0,0.1353189]
[1755967869741,0.90405697,114940.0,114930.0,1.39439095]
[1755967869943,0.90405697,114940.0,114930.0,1.39439079]
[1755967870247,0.90405697,114940.0,114930.0,1.50401297]
[1755967870447,0.90405697,114940.0,114930.0,1.50401259]
[1755967870850,0.90405697,114940.0,114930.0,1.58222193]
[1755967871052,0.90405697,114940.0,114930.0,1.47259975]
[1755967871251,1.10896837,114940.0,114930.0,1.04419049]
[1755967871456,1.10996837,114940.0,114930.0,1.45695019]
[1755967875457,1.10996837,114940.0,114930.0,1.36991129]
[1755967875655,1.10996837,114940.0,114930.0,1.45695019]
[1755967876355,1.10996837,114940.0,114930.0,1.36991129]
[1755967876555,1.10996837,114940.0,114930.0,1.30735151]
[1755967879761,1.10996837,114940.0,114930.0,1.30735164]
[1755967882062,1.10996837,114940.0,114930.0,1.39439014]
[1755967882469,1.10996837,114940.0,114930.0,1.50401232]
[1755967882765,1.10996837,114940.0,114930.0,0.92600478]
[1755967882961,1.10996837,114940.0,114930.0,1.41697382]
[1755967884063,1.10996837,114940.0,114930.0,1.41697384]
[1755967889570,1.10996837,114940.0,114930.0,1.4169739]
[1755967889761,1.10996837,114940.0,114930.0,1.30735172]
[1755967890269,1.10996837,114940.0,114930.0,1.4169739]
[1755967891367,1.10996837,114940.0,114930.0,1.30735172]
[1755967892772,1.10996837,114940.0,114930.0,1.38554601]
[1755967899373,1.10996837,114940.0,114930.0,1.30735172]
[1755967901374,1.10996837,114940.0,114930.0,1.38554601]
[1755967901575,1.10996837,114940.0,114930.0,1.30735172]
[1755967902867,1.10996837,114940.0,114930.0,1.38554601]
[1755967904678,1.10996837,114940.0,114930.0,1.47258441]
[1755967905577,1.07294837,114940.0,114930.0,1.47258441]
[1755967906884,1.11142837,114940.0,114930.0,1.47258441]
[1755967909084,1.11142837,114940.0,114930.0,1.46237903]
[1755967909285,1.11142837,114940.0,114930.0,1.47258441]
[1755967911479,1.11142837,114940.0,114930.0,1.39439012]
[1755967918787,1.11142837,114940.0,114930.0,1.38418474]
[1755967918988,1.11142837,114940.0,114930.0,1.39439012]
[1755967920383,1.11142837,114940.0,114930.0,1.47266661]
[1755967921192,1.11142837,114940.0,114930.0,0.98169757]
[1755967921389,1.11142837,114940.0,114930.0,1.47266661]
[1755967921890,1.11142837,114940.0,114930.0,1.38562821]
[1755967922089,1.11142837,114940.0,114930.0,1.47266661]
[1755967922293,1.11142837,114940.0,114930.0,1.39439012]
[1755967923180,1.02321777,114940.0,114930.0,1.64439012]
[1755967923387,0.99208777,114940.0,114930.0,1.64439012]
[1755967923995,0.90505697,114940.0,114930.0,2.18345883]
[1755967924191,0.90505697,114940.0,114930.0,2.17325345]
[1755967924493,0.90505697,114940.0,114930.0,2.10518937]
[1755967924691,0.90505697,114940.0,114930.0,2.21481155]
[1755967924993,0.90505697,114940.0,114930.0,2.22350477]
[1755967925195,0.90505697,114940.0,114930.0,2.72350477]
[1755967925881,0.11345697,114940.0,114930.0,3.51474477]